[Event "Titled Tuesday Blitz July 18 Late 2023"]
[White "Nihal Sarin"]
[Black "Svane, Rasmus"]
[WhiteFideId "25092340"]
[BlackFideId "4657101"]
[WhiteElo "3058"]
[BlackElo "2958"]
[Result "1/2-1/2"]
[Round "8"]
[TimeControl "180+2"]
[Date "2023.07.18"]
[WhiteClock "0:00:25"]
[BlackClock "0:00:06"]
[Board "9"]

1. a3 {[%clk 0:03:00]}  e5 {[%clk 0:02:58]} 2. c4 {[%clk 0:03:00]}  Nf6 {[%clk 0:02:56]} 3. d3 {[%clk 0:03:00]}  g6 {[%clk 0:02:32]} 4. Nf3 {[%clk 0:03:00]}  d6 {[%clk 0:02:27]} 5. g3 {[%clk 0:03:00]}  Bg7 {[%clk 0:02:28]} 6. Bg2 {[%clk 0:03:01]}  O-O {[%clk 0:02:27]} 7. Nc3 {[%clk 0:03:01]}  a5 {[%clk 0:02:25]} 8. O-O {[%clk 0:03:01]}  c6 {[%clk 0:02:25]} 9. Rb1 {[%clk 0:03:01]}  Re8 {[%clk 0:02:25]} 10. b4 {[%clk 0:03:02]}  axb4 {[%clk 0:02:26]} 11. axb4 {[%clk 0:03:02]}  d5 {[%clk 0:02:25]} 12. cxd5 {[%clk 0:02:42]}  cxd5 {[%clk 0:02:26]} 13. Bg5 {[%clk 0:02:42]}  h6 {[%clk 0:02:20]} 14. Bxf6 {[%clk 0:02:42]}  Bxf6 {[%clk 0:02:21]} 15. Nd2 {[%clk 0:02:37]}  Be6 {[%clk 0:02:19]} 16. e4 {[%clk 0:02:31]}  d4 {[%clk 0:02:19]} 17. Nd5 {[%clk 0:02:32]}  Na6 {[%clk 0:01:47]} 18. Rc1 {[%clk 0:02:14]}  Bg7 {[%clk 0:01:24]} 19. b5 {[%clk 0:02:10]}  Bxd5 {[%clk 0:01:24]} 20. exd5 {[%clk 0:02:11]}  Nc7 {[%clk 0:01:16]} 21. Qb3 {[%clk 0:02:11]}  Ra5 {[%clk 0:01:12]} 22. d6 {[%clk 0:02:01]}  Nxb5 {[%clk 0:01:04]} 23. Nc4 {[%clk 0:02:01]}  Nxd6 {[%clk 0:01:04]} 24. Nxa5 {[%clk 0:02:01]}  Qxa5 {[%clk 0:01:05]} 25. Qd5 {[%clk 0:01:51]}  Qxd5 {[%clk 0:00:59]} 26. Bxd5 {[%clk 0:01:51]}  Re7 {[%clk 0:00:51]} 27. Rb1 {[%clk 0:01:44]}  Kh7 {[%clk 0:00:49]} 28. Rb6 {[%clk 0:01:45]}  Rd7 {[%clk 0:00:48]} 29. Rfb1 {[%clk 0:01:45]}  f5 {[%clk 0:00:43]} 30. f3 {[%clk 0:01:37]}  h5 {[%clk 0:00:43]} 31. Bxb7 {[%clk 0:01:36]}  Nxb7 {[%clk 0:00:38]} 32. Rxb7 {[%clk 0:01:36]}  Rxb7 {[%clk 0:00:39]} 33. Rxb7 {[%clk 0:01:37]}  Kh6 {[%clk 0:00:39]} 34. Rf7 {[%clk 0:01:32]}  Kh7 {[%clk 0:00:34]} 35. Kf2 {[%clk 0:01:31]}  Kg8 {[%clk 0:00:34]} 36. Rb7 {[%clk 0:01:27]}  Bf6 {[%clk 0:00:31]} 37. h3 {[%clk 0:01:24]}  Kf8 {[%clk 0:00:28]} 38. g4 {[%clk 0:01:25]}  hxg4 {[%clk 0:00:27]} 39. hxg4 {[%clk 0:01:25]}  Bg5 {[%clk 0:00:23]} 40. gxf5 {[%clk 0:01:13]}  gxf5 {[%clk 0:00:23]} 41. Rh7 {[%clk 0:01:13]}  Bf6 {[%clk 0:00:12]} 42. Ke2 {[%clk 0:01:13]}  Kg8 {[%clk 0:00:12]} 43. Rh5 {[%clk 0:01:14]}  Kf7 {[%clk 0:00:13]} 44. Rh7+ {[%clk 0:00:53]}  Kg6 {[%clk 0:00:13]} 45. Rb7 {[%clk 0:00:51]}  Kg5 {[%clk 0:00:14]} 46. Rb6 {[%clk 0:00:45]}  Bg7 {[%clk 0:00:14]} 47. Rb7 {[%clk 0:00:35]}  Bf6 {[%clk 0:00:14]} 48. Rf7 {[%clk 0:00:35]}  Bd8 {[%clk 0:00:12]} 49. Rf8 {[%clk 0:00:36]}  Be7 {[%clk 0:00:12]} 50. Re8 {[%clk 0:00:36]}  Bf6 {[%clk 0:00:12]} 51. Kf2 {[%clk 0:00:36]}  Kf4 {[%clk 0:00:12]} 52. Re6 {[%clk 0:00:35]}  Bh4+ {[%clk 0:00:12]} 53. Ke2 {[%clk 0:00:35]}  Bg5 {[%clk 0:00:12]} 54. Rg6 {[%clk 0:00:33]}  Bh4 {[%clk 0:00:12]} 55. Rg8 {[%clk 0:00:30]}  Bg5 {[%clk 0:00:12]} 56. Rh8 {[%clk 0:00:29]}  Bf6 {[%clk 0:00:12]} 57. Rh5 {[%clk 0:00:27]}  Be7 {[%clk 0:00:13]} 58. Rh7 {[%clk 0:00:22]}  Bg5 {[%clk 0:00:13]} 59. Rf7 {[%clk 0:00:23]}  Bh4 {[%clk 0:00:13]} 60. Kd2 {[%clk 0:00:23]}  Bf2 {[%clk 0:00:11]} 61. Kc2 {[%clk 0:00:21]}  Bg3 {[%clk 0:00:09]} 62. Kb3 {[%clk 0:00:15]}  Kxf3 {[%clk 0:00:06]} 63. Rxf5+ {[%clk 0:00:16]}  Ke3 {[%clk 0:00:07]} 64. Kc4 {[%clk 0:00:12]}  e4 {[%clk 0:00:07]} 65. Rg5 {[%clk 0:00:08]}  Bf4 {[%clk 0:00:07]} 66. Rg8 {[%clk 0:00:08]}  exd3 {[%clk 0:00:06]} 67. Re8+ {[%clk 0:00:09]}  Kf3 {[%clk 0:00:07]} 68. Kxd3 {[%clk 0:00:09]}  Be3 {[%clk 0:00:07]} 69. Rf8+ {[%clk 0:00:10]}  Kg4 {[%clk 0:00:07]} 70. Ke4 {[%clk 0:00:11]}  Kg5 {[%clk 0:00:08]} 71. Rf5+ {[%clk 0:00:09]}  Kg6 {[%clk 0:00:08]} 72. Rf3 {[%clk 0:00:10]}  Kg5 {[%clk 0:00:07]} 73. Ke5 {[%clk 0:00:10]}  Kg6 {[%clk 0:00:07]} 74. Rg3+ {[%clk 0:00:08]}  Kf7 {[%clk 0:00:07]} 75. Kf5 {[%clk 0:00:07]}  Ke7 {[%clk 0:00:08]} 76. Rg6 {[%clk 0:00:07]}  Kf7 {[%clk 0:00:07]} 77. Rd6 {[%clk 0:00:06]}  Ke7 {[%clk 0:00:06]} 78. Rd5 {[%clk 0:00:07]}  Bf2 {[%clk 0:00:06]} 79. Ke5 {[%clk 0:00:05]}  Be3 {[%clk 0:00:06]} 80. Kf5 {[%clk 0:00:04]}  Bf2 {[%clk 0:00:06]} 81. Ke4 {[%clk 0:00:04]}  Be3 {[%clk 0:00:06]} 82. Rh5 {[%clk 0:00:03]}  Ke6 {[%clk 0:00:06]} 83. Ra5 {[%clk 0:00:03]}  Bf2 {[%clk 0:00:06]} 84. Ra6+ {[%clk 0:00:03]}  Ke7 {[%clk 0:00:06]} 85. Ke5 {[%clk 0:00:02]}  Kd7 {[%clk 0:00:06]} 86. Kd5 {[%clk 0:00:01]}  Ke7 {[%clk 0:00:07]} 87. Re6+ {[%clk 0:00:02]}  Kd7 {[%clk 0:00:07]} 88. Rf6 {[%clk 0:00:02]}  Be3 {[%clk 0:00:06]} 89. Rf7+ {[%clk 0:00:02]}  Ke8 {[%clk 0:00:06]} 90. Ke6 {[%clk 0:00:03]}  Kd8 {[%clk 0:00:04]} 91. Rd7+ {[%clk 0:00:03]}  Ke8 {[%clk 0:00:04]} 92. Rd5 {[%clk 0:00:03]}  Bf2 {[%clk 0:00:01]} 93. Rf5 {[%clk 0:00:02]}  Be3 {[%clk 0:00:02]} 94. Rd5 {[%clk 0:00:02]}  Bf2 {[%clk 0:00:02]} 95. Rg5 {[%clk 0:00:03]}  Kd8 {[%clk 0:00:01]} 96. Rf5 {[%clk 0:00:03]}  Be3 {[%clk 0:00:02]} 97. Rc5 {[%clk 0:00:04]}  d3 {[%clk 0:00:01]} 98. Rd5+ {[%clk 0:00:04]}  Kc7 {[%clk 0:00:02]} 99. Rxd3 {[%clk 0:00:05]}  Ba7 {[%clk 0:00:02]} 100. Rc3+ {[%clk 0:00:06]}  Kb7 {[%clk 0:00:03]} 101. Kd7 {[%clk 0:00:06]}  Ka8 {[%clk 0:00:03]} 102. Kc6 {[%clk 0:00:07]}  Bf2 {[%clk 0:00:04]} 103. Ra3+ {[%clk 0:00:07]}  Ba7 {[%clk 0:00:04]} 104. Rf3 {[%clk 0:00:08]}  Bb8 {[%clk 0:00:04]} 105. Rf8 {[%clk 0:00:08]}  Ka7 {[%clk 0:00:04]} 106. Rg8 {[%clk 0:00:09]}  Ka8 {[%clk 0:00:05]} 107. Rg5 {[%clk 0:00:09]}  Ba7 {[%clk 0:00:05]} 108. Ra5 {[%clk 0:00:08]}  Kb8 {[%clk 0:00:05]} 109. Ra4 {[%clk 0:00:09]}  Ka8 {[%clk 0:00:06]} 110. Rb4 {[%clk 0:00:08]}  Bb8 {[%clk 0:00:06]} 111. Kb6 {[%clk 0:00:09]}  Ba7+ {[%clk 0:00:07]} 112. Kc7 {[%clk 0:00:09]}  Bf2 {[%clk 0:00:06]} 113. Rb2 {[%clk 0:00:09]}  Ba7 {[%clk 0:00:06]} 114. Rb1 {[%clk 0:00:09]}  Bf2 {[%clk 0:00:06]} 115. Rb8+ {[%clk 0:00:10]}  Ka7 {[%clk 0:00:06]} 116. Rb2 {[%clk 0:00:11]}  Bg3+ {[%clk 0:00:07]} 117. Kc6 {[%clk 0:00:11]}  Ka8 {[%clk 0:00:05]} 118. Ra2+ {[%clk 0:00:12]}  Kb8 {[%clk 0:00:06]} 119. Ra3 {[%clk 0:00:12]}  Bf4 {[%clk 0:00:05]} 120. Rf3 {[%clk 0:00:13]}  Be5 {[%clk 0:00:05]} 121. Rf5 {[%clk 0:00:13]}  Bh2 {[%clk 0:00:04]} 122. Rg5 {[%clk 0:00:13]}  Bf4 {[%clk 0:00:04]} 123. Rg4 {[%clk 0:00:13]}  Be5 {[%clk 0:00:03]} 124. Kb6 {[%clk 0:00:13]}  Bc7+ {[%clk 0:00:03]} 125. Kc6 {[%clk 0:00:13]}  Be5 {[%clk 0:00:03]} 126. Re4 {[%clk 0:00:14]}  Bg3 {[%clk 0:00:03]} 127. Kb6 {[%clk 0:00:15]}  Ka8 {[%clk 0:00:03]} 128. Ra4+ {[%clk 0:00:14]}  Kb8 {[%clk 0:00:03]} 129. Rg4 {[%clk 0:00:15]}  Bf2+ {[%clk 0:00:04]} 130. Kc6 {[%clk 0:00:16]}  Ka8 {[%clk 0:00:03]} 131. Rg8+ {[%clk 0:00:16]}  Ka7 {[%clk 0:00:04]} 132. Rg2 {[%clk 0:00:17]}  Be3 {[%clk 0:00:04]} 133. Ra2+ {[%clk 0:00:18]}  Kb8 {[%clk 0:00:04]} 134. Re2 {[%clk 0:00:18]}  Bf4 {[%clk 0:00:04]} 135. Re4 {[%clk 0:00:19]}  Bg3 {[%clk 0:00:04]} 136. Rb4+ {[%clk 0:00:20]}  Ka8 {[%clk 0:00:04]} 137. Rg4 {[%clk 0:00:21]}  Bf2 {[%clk 0:00:04]} 138. Rf4 {[%clk 0:00:20]}  Bg3 {[%clk 0:00:04]} 139. Rf8+ {[%clk 0:00:20]}  Bb8 {[%clk 0:00:04]} 140. Rf3 {[%clk 0:00:21]}  Ba7 {[%clk 0:00:04]} 141. Kc7 {[%clk 0:00:21]}  Bb8+ {[%clk 0:00:04]} 142. Kc8 {[%clk 0:00:22]}  Ba7 {[%clk 0:00:05]} 143. Rb3 {[%clk 0:00:23]}  Bc5 {[%clk 0:00:05]} 144. Rb8+ {[%clk 0:00:24]}  Ka7 {[%clk 0:00:05]} 145. Rb5 {[%clk 0:00:25]}  Bb6 {[%clk 0:00:06]} 146. Kd7 {[%clk 0:00:25]}  Bf2 {[%clk 0:00:05]} 147. Kc7 {[%clk 0:00:25]}  Ka8 {[%clk 0:00:06]} 148. Kc6 {[%clk 0:00:26]}  Ba7 {[%clk 0:00:06]} 149. Kc7 {[%clk 0:00:25]} 1/2-1/2


[Site "https://www.chess.com"]

[Event "Titled Tuesday Blitz July 18 Late 2023"]
[White "Perez Ponsa, Federico"]
[Black "Bluebaum, Matthias"]
[WhiteFideId "117927"]
[BlackFideId "24651516"]
[WhiteElo "2838"]
[BlackElo "3012"]
[Result "1/2-1/2"]
[Round "8"]
[TimeControl "180+2"]
[Date "2023.07.18"]
[WhiteClock "0:01:31"]
[BlackClock "0:01:22"]
[Board "11"]

1. e4 {[%clk 0:02:45]}  e6 {[%clk 0:02:59]} 2. d4 {[%clk 0:02:46]}  d5 {[%clk 0:03:00]} 3. e5 {[%clk 0:02:46]}  c5 {[%clk 0:03:00]} 4. c3 {[%clk 0:02:46]}  Nc6 {[%clk 0:03:01]} 5. Nf3 {[%clk 0:02:47]}  Nge7 {[%clk 0:03:01]} 6. Na3 {[%clk 0:02:46]}  Bd7 {[%clk 0:03:01]} 7. Nc2 {[%clk 0:02:46]}  Qa5 {[%clk 0:03:01]} 8. Bd2 {[%clk 0:02:44]}  Qb6 {[%clk 0:03:00]} 9. Rb1 {[%clk 0:02:42]}  Nf5 {[%clk 0:02:58]} 10. Bd3 {[%clk 0:02:35]}  cxd4 {[%clk 0:02:57]} 11. Bxf5 {[%clk 0:02:35]}  exf5 {[%clk 0:02:58]} 12. Ncxd4 {[%clk 0:02:33]}  Nxd4 {[%clk 0:02:54]} 13. Nxd4 {[%clk 0:02:33]}  Bc5 {[%clk 0:02:51]} 14. Be3 {[%clk 0:02:29]}  O-O {[%clk 0:02:46]} 15. O-O {[%clk 0:02:24]}  Rfe8 {[%clk 0:02:46]} 16. b4 {[%clk 0:02:14]}  Bxd4 {[%clk 0:02:44]} 17. Bxd4 {[%clk 0:02:13]}  Qg6 {[%clk 0:02:41]} 18. f4 {[%clk 0:02:10]}  Bb5 {[%clk 0:02:28]} 19. Rf3 {[%clk 0:02:10]}  Qa6 {[%clk 0:02:29]} 20. Rg3 {[%clk 0:01:58]}  Re6 {[%clk 0:02:27]} 21. Qd2 {[%clk 0:01:58]}  Rg6 {[%clk 0:02:23]} 22. Re1 {[%clk 0:01:57]}  Rxg3 {[%clk 0:02:15]} 23. hxg3 {[%clk 0:01:58]}  Bd3 {[%clk 0:02:15]} 24. a4 {[%clk 0:01:52]}  Be4 {[%clk 0:02:15]} 25. a5 {[%clk 0:01:51]}  Qg6 {[%clk 0:02:09]} 26. Qe3 {[%clk 0:01:51]}  a6 {[%clk 0:02:09]} 27. Kf2 {[%clk 0:01:51]}  Rc8 {[%clk 0:02:04]} 28. Rh1 {[%clk 0:01:51]}  Qc6 {[%clk 0:02:04]} 29. Re1 {[%clk 0:01:51]}  Re8 {[%clk 0:02:03]} 30. Re2 {[%clk 0:01:51]}  Re6 {[%clk 0:02:03]} 31. Bc5 {[%clk 0:01:51]}  Rh6 {[%clk 0:02:00]} 32. Kg1 {[%clk 0:01:50]}  Rh5 {[%clk 0:01:57]} 33. Be7 {[%clk 0:01:46]}  Rh6 {[%clk 0:01:39]} 34. Qc5 {[%clk 0:01:40]}  Re6 {[%clk 0:01:29]} 35. Qxc6 {[%clk 0:01:39]}  Rxc6 {[%clk 0:01:30]} 36. Bc5 {[%clk 0:01:39]}  h6 {[%clk 0:01:26]} 37. Kf2 {[%clk 0:01:40]}  g5 {[%clk 0:01:22]} 38. Ke3 {[%clk 0:01:38]}  Kg7 {[%clk 0:01:20]} 39. Rf2 {[%clk 0:01:31]}  Kg6 {[%clk 0:01:20]} 40. Kd4 {[%clk 0:01:31]}  Rc7 {[%clk 0:01:20]} 41. Rd2 {[%clk 0:01:29]}  Rc8 {[%clk 0:01:20]} 42. Rf2 {[%clk 0:01:29]}  Rc7 {[%clk 0:01:21]} 43. Rd2 {[%clk 0:01:30]}  Rc8 {[%clk 0:01:21]} 44. Rf2 {[%clk 0:01:31]}  Rc7 {[%clk 0:01:22]} 1/2-1/2


[Site "https://www.chess.com"]

[Event "Titled Tuesday Blitz July 18 Late 2023"]
[White "Yoo, Christopher Woojin"]
[Black "Meshkovs, Nikita"]
[WhiteFideId "30909694"]
[BlackFideId "11602740"]
[WhiteElo "2975"]
[BlackElo "2768"]
[Result "1/2-1/2"]
[Round "8"]
[TimeControl "180+2"]
[Date "2023.07.18"]
[WhiteClock "0:00:03"]
[BlackClock "0:00:09"]
[Board "15"]

1. d4 {[%clk 0:03:00]}  Nf6 {[%clk 0:03:00]} 2. Nf3 {[%clk 0:03:00]}  e6 {[%clk 0:03:01]} 3. Bf4 {[%clk 0:02:59]}  c5 {[%clk 0:03:00]} 4. e3 {[%clk 0:02:59]}  Nc6 {[%clk 0:03:00]} 5. Nbd2 {[%clk 0:02:59]}  d5 {[%clk 0:03:01]} 6. c3 {[%clk 0:02:58]}  Nh5 {[%clk 0:03:01]} 7. Be5 {[%clk 0:02:58]}  f6 {[%clk 0:03:00]} 8. Bg3 {[%clk 0:02:57]}  g6 {[%clk 0:02:58]} 9. Be2 {[%clk 0:02:48]}  Be7 {[%clk 0:02:53]} 10. O-O {[%clk 0:02:40]}  O-O {[%clk 0:02:49]} 11. dxc5 {[%clk 0:02:38]}  Bxc5 {[%clk 0:02:45]} 12. c4 {[%clk 0:02:37]}  Nxg3 {[%clk 0:02:33]} 13. hxg3 {[%clk 0:02:36]}  dxc4 {[%clk 0:02:24]} 14. Bxc4 {[%clk 0:02:34]}  Qe7 {[%clk 0:02:22]} 15. a3 {[%clk 0:02:32]}  Rd8 {[%clk 0:02:11]} 16. b4 {[%clk 0:02:30]}  Bd6 {[%clk 0:02:08]} 17. Qb3 {[%clk 0:02:28]}  Ne5 {[%clk 0:01:49]} 18. Nxe5 {[%clk 0:02:27]}  Bxe5 {[%clk 0:01:50]} 19. Rad1 {[%clk 0:02:26]}  Re8 {[%clk 0:01:06]} 20. Nf3 {[%clk 0:02:00]}  Bc7 {[%clk 0:01:06]} 21. Rd2 {[%clk 0:01:57]}  a5 {[%clk 0:01:03]} 22. Rfd1 {[%clk 0:01:54]}  axb4 {[%clk 0:01:02]} 23. axb4 {[%clk 0:01:55]}  Kg7 {[%clk 0:00:53]} 24. Nd4 {[%clk 0:01:48]}  e5 {[%clk 0:00:49]} 25. Ne6+ {[%clk 0:01:36]}  Bxe6 {[%clk 0:00:49]} 26. Bxe6 {[%clk 0:01:36]}  Qxe6 {[%clk 0:00:49]} 27. Rd7+ {[%clk 0:01:36]}  Kh6 {[%clk 0:00:50]} 28. Qxe6 {[%clk 0:01:36]}  Rxe6 {[%clk 0:00:51]} 29. Rxc7 {[%clk 0:01:37]}  Rb6 {[%clk 0:00:51]} 30. Rdd7 {[%clk 0:01:20]}  Rxb4 {[%clk 0:00:50]} 31. f4 {[%clk 0:01:19]}  Kh5 {[%clk 0:00:41]} 32. Rxh7+ {[%clk 0:01:12]}  Kg4 {[%clk 0:00:41]} 33. Kh2 {[%clk 0:01:10]}  Ra2 {[%clk 0:00:29]} 34. Rxb7 {[%clk 0:00:27]}  Rxb7 {[%clk 0:00:30]} 35. Rxb7 {[%clk 0:00:27]}  Ra3 {[%clk 0:00:30]} 36. Rb6 {[%clk 0:00:20]}  Kf5 {[%clk 0:00:23]} 37. e4+ {[%clk 0:00:18]}  Kxe4 {[%clk 0:00:22]} 38. Rxf6 {[%clk 0:00:19]}  exf4 {[%clk 0:00:19]} 39. gxf4 {[%clk 0:00:20]}  Rb3 {[%clk 0:00:12]} 40. g3 {[%clk 0:00:19]}  Kf3 {[%clk 0:00:10]} 41. Rxg6 {[%clk 0:00:19]}  Rb5 {[%clk 0:00:09]} 42. Rg8 {[%clk 0:00:10]}  Rh5+ {[%clk 0:00:08]} 43. Kg1 {[%clk 0:00:10]}  Rc5 {[%clk 0:00:08]} 44. Rg6 {[%clk 0:00:09]}  Rb5 {[%clk 0:00:07]} 45. Rg7 {[%clk 0:00:06]}  Rc5 {[%clk 0:00:08]} 46. Rg8 {[%clk 0:00:05]}  Rd5 {[%clk 0:00:08]} 47. Kh2 {[%clk 0:00:05]}  Rh5+ {[%clk 0:00:08]} 48. Kg1 {[%clk 0:00:05]}  Rc5 {[%clk 0:00:09]} 49. Kh1 {[%clk 0:00:03]}  Rh5+ {[%clk 0:00:09]} 50. Kg1 {[%clk 0:00:03]} 1/2-1/2


[Site "https://www.chess.com"]

[Event "Titled Tuesday Blitz July 18 Late 2023"]
[White "Smirnov, Pavel"]
[Black "Oparin, Grigoriy"]
[WhiteFideId "4123425"]
[BlackFideId "24125890"]
[WhiteElo "2710"]
[BlackElo "2979"]
[Result "0-1"]
[Round "8"]
[TimeControl "180+2"]
[Date "2023.07.18"]
[WhiteClock "0:00:00"]
[BlackClock "0:00:36"]
[Board "16"]

1. d4 {[%clk 0:03:00]}  Nf6 {[%clk 0:03:00]} 2. c4 {[%clk 0:03:01]}  e6 {[%clk 0:03:00]} 3. g3 {[%clk 0:03:01]}  d5 {[%clk 0:03:00]} 4. Nf3 {[%clk 0:03:02]}  Bb4+ {[%clk 0:02:59]} 5. Bd2 {[%clk 0:03:02]}  a5 {[%clk 0:02:59]} 6. Bg2 {[%clk 0:03:02]}  dxc4 {[%clk 0:03:00]} 7. a3 {[%clk 0:02:54]}  Bxd2+ {[%clk 0:02:55]} 8. Nbxd2 {[%clk 0:02:55]}  b5 {[%clk 0:02:56]} 9. b3 {[%clk 0:02:55]}  cxb3 {[%clk 0:02:55]} 10. Qxb3 {[%clk 0:02:55]}  c6 {[%clk 0:02:54]} 11. O-O {[%clk 0:02:55]}  Bb7 {[%clk 0:02:54]} 12. Qb2 {[%clk 0:02:54]}  O-O {[%clk 0:02:48]} 13. Rfc1 {[%clk 0:02:54]}  Nbd7 {[%clk 0:02:46]} 14. Ne1 {[%clk 0:02:54]}  Nd5 {[%clk 0:02:42]} 15. Nd3 {[%clk 0:02:52]}  Qe7 {[%clk 0:02:43]} 16. Ne4 {[%clk 0:02:47]}  Rfb8 {[%clk 0:02:28]} 17. Nec5 {[%clk 0:02:41]}  Nxc5 {[%clk 0:02:25]} 18. Nxc5 {[%clk 0:02:29]}  Bc8 {[%clk 0:02:22]} 19. e4 {[%clk 0:02:23]}  Nb6 {[%clk 0:02:17]} 20. e5 {[%clk 0:02:22]}  Nd5 {[%clk 0:02:16]} 21. h4 {[%clk 0:02:02]}  h6 {[%clk 0:02:16]} 22. Qe2 {[%clk 0:02:01]}  Bd7 {[%clk 0:02:13]} 23. Be4 {[%clk 0:01:58]}  b4 {[%clk 0:02:10]} 24. axb4 {[%clk 0:01:49]}  Rxb4 {[%clk 0:02:06]} 25. Qd2 {[%clk 0:01:37]}  Rb5 {[%clk 0:01:41]} 26. Bd3 {[%clk 0:01:31]}  Rb4 {[%clk 0:01:42]} 27. Be4 {[%clk 0:01:24]}  Rb5 {[%clk 0:01:27]} 28. Bg2 {[%clk 0:01:11]}  Be8 {[%clk 0:01:22]} 29. Bf1 {[%clk 0:01:10]}  Rb4 {[%clk 0:01:22]} 30. Ra3 {[%clk 0:00:53]}  Qd8 {[%clk 0:01:20]} 31. Rca1 {[%clk 0:00:49]}  Nc7 {[%clk 0:01:10]} 32. Rd3 {[%clk 0:00:42]}  Nb5 {[%clk 0:01:06]} 33. Rd1 {[%clk 0:00:41]}  Qe7 {[%clk 0:01:00]} 34. Ne4 {[%clk 0:00:26]}  Rd8 {[%clk 0:01:00]} 35. Nf6+ {[%clk 0:00:16]}  gxf6 {[%clk 0:01:00]} 36. Qxh6 {[%clk 0:00:16]}  f5 {[%clk 0:00:50]} 37. g4 {[%clk 0:00:07]}  f4 {[%clk 0:00:47]} 38. Rf3 {[%clk 0:00:03]}  Rbxd4 {[%clk 0:00:45]} 39. Rxd4 {[%clk 0:00:02]}  Rxd4 {[%clk 0:00:46]} 40. Bd3 {[%clk 0:00:01]}  Rxd3 {[%clk 0:00:42]} 41. Rxd3 {[%clk 0:00:00]}  Nc7 {[%clk 0:00:36]} 0-1


[Site "https://www.chess.com"]

[Event "Titled Tuesday Blitz July 18 Late 2023"]
[White "Velikanov, Alexander"]
[Black "He, Anthony"]
[WhiteFideId "2039290"]
[BlackFideId "2088215"]
[WhiteElo "2705"]
[BlackElo "2969"]
[Result "0-1"]
[Round "8"]
[TimeControl "180+2"]
[Date "2023.07.18"]
[WhiteClock "0:00:18"]
[BlackClock "0:01:24"]
[Board "17"]

1. e4 {[%clk 0:03:00]}  e5 {[%clk 0:02:55]} 2. Nf3 {[%clk 0:03:00]}  Nc6 {[%clk 0:02:54]} 3. Bc4 {[%clk 0:03:00]}  Bc5 {[%clk 0:02:51]} 4. d3 {[%clk 0:02:58]}  Nf6 {[%clk 0:02:50]} 5. O-O {[%clk 0:02:58]}  d6 {[%clk 0:02:50]} 6. c3 {[%clk 0:02:55]}  O-O {[%clk 0:02:43]} 7. b4 {[%clk 0:02:52]}  Bb6 {[%clk 0:02:40]} 8. a4 {[%clk 0:02:52]}  a6 {[%clk 0:02:40]} 9. Nbd2 {[%clk 0:02:46]}  h6 {[%clk 0:02:39]} 10. h3 {[%clk 0:02:45]}  Ne7 {[%clk 0:02:35]} 11. Re1 {[%clk 0:02:32]}  Ng6 {[%clk 0:02:34]} 12. Nf1 {[%clk 0:02:32]}  Re8 {[%clk 0:02:29]} 13. a5 {[%clk 0:02:21]}  Ba7 {[%clk 0:02:29]} 14. Ng3 {[%clk 0:02:21]}  c6 {[%clk 0:02:26]} 15. Ra2 {[%clk 0:02:06]}  d5 {[%clk 0:02:13]} 16. Bb3 {[%clk 0:02:06]}  Be6 {[%clk 0:02:09]} 17. Rae2 {[%clk 0:02:00]}  Bb8 {[%clk 0:02:05]} 18. exd5 {[%clk 0:01:48]}  cxd5 {[%clk 0:02:06]} 19. c4 {[%clk 0:01:32]}  Bd6 {[%clk 0:01:55]} 20. c5 {[%clk 0:01:29]}  Bc7 {[%clk 0:01:54]} 21. Nxe5 {[%clk 0:01:16]}  Nxe5 {[%clk 0:01:52]} 22. Rxe5 {[%clk 0:01:17]}  Bxe5 {[%clk 0:01:52]} 23. Rxe5 {[%clk 0:01:18]}  d4 {[%clk 0:01:42]} 24. Ba4 {[%clk 0:01:00]}  Bd7 {[%clk 0:01:37]} 25. Rxe8+ {[%clk 0:00:55]}  Qxe8 {[%clk 0:01:36]} 26. Bb3 {[%clk 0:00:43]}  Qe5 {[%clk 0:01:34]} 27. Bb2 {[%clk 0:00:32]}  Re8 {[%clk 0:01:28]} 28. Kh2 {[%clk 0:00:30]}  Bc6 {[%clk 0:01:26]} 29. Bc4 {[%clk 0:00:18]}  h5 {[%clk 0:01:24]} 0-1


[Site "https://www.chess.com"]

[Event "Titled Tuesday Blitz July 18 Late 2023"]
[White "Maghsoodloo, Parham"]
[Black "Alex_Sahakyan2006"]
[WhiteFideId "12539929"]
[WhiteElo "2961"]
[BlackElo "2674"]
[Result "0-1"]
[Round "8"]
[TimeControl "180+2"]
[Date "2023.07.18"]
[WhiteClock "0:00:00"]
[BlackClock "0:00:03"]
[Board "19"]

1. e4 {[%clk 0:03:00]}  e5 {[%clk 0:02:59]} 2. Nf3 {[%clk 0:03:01]}  Nc6 {[%clk 0:02:59]} 3. Bb5 {[%clk 0:03:01]}  a6 {[%clk 0:02:59]} 4. Ba4 {[%clk 0:03:02]}  Nf6 {[%clk 0:02:53]} 5. O-O {[%clk 0:03:00]}  Nxe4 {[%clk 0:02:53]} 6. d4 {[%clk 0:02:57]}  b5 {[%clk 0:02:53]} 7. Bb3 {[%clk 0:02:57]}  d5 {[%clk 0:02:53]} 8. dxe5 {[%clk 0:02:58]}  Be6 {[%clk 0:02:53]} 9. c3 {[%clk 0:02:57]}  Be7 {[%clk 0:02:52]} 10. Nbd2 {[%clk 0:02:56]}  Nc5 {[%clk 0:02:53]} 11. Bc2 {[%clk 0:02:57]}  d4 {[%clk 0:02:53]} 12. Nb3 {[%clk 0:02:56]}  d3 {[%clk 0:02:54]} 13. Bb1 {[%clk 0:02:57]}  Nxb3 {[%clk 0:02:55]} 14. axb3 {[%clk 0:02:57]}  Bf5 {[%clk 0:02:55]} 15. Re1 {[%clk 0:02:53]}  O-O {[%clk 0:02:55]} 16. Be3 {[%clk 0:02:51]}  Qd7 {[%clk 0:02:54]} 17. h3 {[%clk 0:02:48]}  Rfd8 {[%clk 0:02:50]} 18. Bd4 {[%clk 0:02:46]}  Nxd4 {[%clk 0:02:26]} 19. cxd4 {[%clk 0:02:43]}  Bb4 {[%clk 0:02:07]} 20. Re3 {[%clk 0:02:43]}  d2 {[%clk 0:02:03]} 21. Qe2 {[%clk 0:02:42]}  c5 {[%clk 0:01:58]} 22. Bxf5 {[%clk 0:02:04]}  Qxf5 {[%clk 0:01:59]} 23. Nxd2 {[%clk 0:02:03]}  Bxd2 {[%clk 0:01:40]} 24. Qxd2 {[%clk 0:02:03]}  Rxd4 {[%clk 0:01:40]} 25. Qc3 {[%clk 0:02:04]}  Rd5 {[%clk 0:01:32]} 26. e6 {[%clk 0:02:02]}  fxe6 {[%clk 0:01:29]} 27. Rae1 {[%clk 0:02:01]}  Re8 {[%clk 0:01:07]} 28. Qa5 {[%clk 0:01:59]}  Rd6 {[%clk 0:00:46]} 29. Qc7 {[%clk 0:01:59]}  Qd5 {[%clk 0:00:44]} 30. Re5 {[%clk 0:01:51]}  Qd2 {[%clk 0:00:42]} 31. Qxc5 {[%clk 0:01:47]}  Rf8 {[%clk 0:00:36]} 32. R5e2 {[%clk 0:01:37]}  Qd5 {[%clk 0:00:35]} 33. Qc7 {[%clk 0:01:35]}  Rd7 {[%clk 0:00:34]} 34. Qa5 {[%clk 0:01:33]}  Rd6 {[%clk 0:00:29]} 35. Qc3 {[%clk 0:01:31]}  Rc6 {[%clk 0:00:23]} 36. Qg3 {[%clk 0:01:31]}  h6 {[%clk 0:00:19]} 37. Re5 {[%clk 0:01:22]}  Qd7 {[%clk 0:00:19]} 38. Qe3 {[%clk 0:01:11]}  Rf6 {[%clk 0:00:19]} 39. b4 {[%clk 0:01:10]}  Rc2 {[%clk 0:00:18]} 40. Rf1 {[%clk 0:00:29]}  Rxb2 {[%clk 0:00:16]} 41. Qa3 {[%clk 0:00:28]}  Qd4 {[%clk 0:00:09]} 42. Re3 {[%clk 0:00:22]}  Rbxf2 {[%clk 0:00:07]} 43. Rxf2 {[%clk 0:00:22]}  Qd1+ {[%clk 0:00:07]} 44. Kh2 {[%clk 0:00:22]}  Rxf2 {[%clk 0:00:08]} 45. Qxa6 {[%clk 0:00:23]}  Qd5 {[%clk 0:00:05]} 46. Rg3 {[%clk 0:00:12]}  Qe5 {[%clk 0:00:05]} 47. Qa7 {[%clk 0:00:07]}  Rf5 {[%clk 0:00:03]} 48. Qa8+ {[%clk 0:00:05]}  Kh7 {[%clk 0:00:04]} 49. Qe8 {[%clk 0:00:00]}  Rg5 {[%clk 0:00:03]} 0-1


[Site "https://www.chess.com"]